bitfinex-derivatives/quotes_SOLF0:USTF0_20240927
["timestamp","ask_amount","ask_price","bid_price","bid_amount"]
[1727406996189,9.97,154.57,154.52,9.97]
[1727406996488,9.97,154.59,154.54,9.97]
[1727406996678,1.3482,154.61,154.54,9.97]
[1727406996881,9.97,154.6,154.54,9.97]
[1727406997082,3.2343,154.57,154.54,9.97]
[1727406997282,3.2343,154.57,154.55,17.19169777]
[1727406997587,11.303,154.62,154.56,17.19112967]
[1727406997786,3.2338,154.59,154.58,9.97]
[1727406998684,3.2338,154.59,154.58,17.1913807]
[1727406998891,3.2338,154.59,154.58,9.97]
[1727406999287,3.2338,154.59,154.58,17.19111108]
[1727406999695,3.2338,154.59,154.58,9.97]
[1727407000287,3.2338,154.59,154.58,24.41356714]
[1727407000491,1.333,154.62,154.58,24.41356714]
[1727407000492,3.2337,154.6,154.58,24.41356714]
[1727407000793,3.2337,154.6,154.59,9.97]
[1727407005292,3.2338,154.59,154.58,7.22187768]
[1727407005490,3.2338,154.59,154.58,24.41368841]
[1727407006386,3.2338,154.59,154.58,17.19181073]
[1727407006793,3.2336,154.61,154.58,28.74446018]
[1727407006995,3.2336,154.61,154.6,9.97]
[1727407007394,3.2336,154.61,154.6,17.18866857]
[1727407007795,3.2336,154.61,154.6,28.73511733]
[1727407008687,3.2336,154.61,154.6,17.18866857]
[1727407011195,3.2336,154.61,154.6,17.18494598]
[1727407014193,3.2336,154.61,154.6,9.97]
[1727407014590,3.2336,154.61,154.6,17.18656955]
[1727407015402,3.2336,154.61,154.6,28.73491433]
[1727407015900,3.2336,154.61,154.6,17.18656955]
[1727407016403,3.2336,154.61,154.6,28.73461143]
[1727407016799,3.2336,154.61,154.6,17.18656955]
[1727407017603,3.2336,154.61,154.6,28.7342717]
[1727407017807,3.2336,154.61,154.6,9.97]
[1727407018004,3.2336,154.61,154.6,28.73499737]
[1727407018309,3.2336,154.61,154.6,9.97]
[1727407018501,3.2336,154.61,154.6,17.18695974]
[1727407018896,3.2336,154.61,154.6,28.73427957]
[1727407019200,3.2336,154.61,154.6,17.18695974]
[1727407019401,3.2336,154.61,154.6,28.73196382]
[1727407020905,1.3984,154.66,154.6,28.73196382]
[1727407021100,1.3984,154.66,154.63,9.97]
[1727407021500,3.2328,154.64,154.63,9.97]
[1727407026612,9.97,154.65,154.58,3.2339]
[1727407026812,9.97,154.65,154.6,9.97]
[1727407027013,9.97,154.65,154.61,7.2114819]
[1727407027214,3.2332,154.62,154.6,9.97]
[1727407027609,3.2332,154.62,154.61,9.97]
[1727407028113,3.2332,154.62,154.61,17.18124747]
[1727407030110,7.7274,154.71,154.61,17.18124747]
[1727407030111,3.233,154.64,154.61,20.41464747]
[1727407030311,3.233,154.64,154.63,9.97]
[1727407033313,9.97,154.68,154.59,3.22205214]
[1727407033314,3.233,154.63,154.62,9.97]
[1727407033515,3.233,154.63,154.62,17.17971141]
[1727407034314,3.233,154.63,154.62,9.97]
[1727407034509,3.233,154.63,154.62,17.17978519]
[1727407035313,3.233,154.63,154.62,9.97]
[1727407035715,3.233,154.63,154.62,17.17918029]
[1727407037415,3.233,154.63,154.62,9.97]
[1727407039014,3.233,154.63,154.62,17.18060253]
[1727407039517,3.233,154.63,154.62,9.97]
[1727407046320,3.2329,154.64,154.62,9.97]
[1727407046520,9.97,154.69,154.63,9.97]
[1727407047018,3.2331,154.63,154.62,9.97]
[1727407047222,3.2331,154.63,154.62,17.17717654]
[1727407050321,3.2331,154.63,154.62,17.17596337]
[1727407050819,3.2325,154.66,154.62,20.40906337]
[1727407051021,9.0243,154.71,154.66,9.97]
[1727407051022,1.2969,154.71,154.66,9.97]
[1727407051220,6.4611,154.75,154.68,9.97]
[1727407051430,6.4611,154.75,154.69,9.97]
[1727407051726,9.97,154.74,154.69,9.97]
[1727407052222,3.2315,154.7,154.69,9.97]
[1727407056924,3.2318,154.69,154.65,3.2325]
[1727407057126,3.2318,154.69,154.68,9.97]
[1727407058821,3.2321,154.68,154.67,9.97]
[1727407060630,3.2321,154.68,154.64,4.5859]
[1727407060827,9.97,154.69,154.65,7.19087112]
[1727407061029,9.97,154.71,154.66,9.97]
[1727407061332,3.2323,154.67,154.64,4.5859]
[1727407061531,3.2323,154.67,154.66,9.97]
[1727407062030,3.2321,154.68,154.66,9.97]
[1727407062227,3.2321,154.68,154.64,4.5859]
[1727407062228,3.2321,154.68,154.67,9.97]
[1727407062629,3.2318,154.69,154.67,9.97]
[1727407062833,3.2318,154.69,154.68,9.97]
[1727407065946,3.2316,154.7,154.68,9.97]
[1727407066134,9.97,154.74,154.68,9.97]
[1727407066334,9.97,154.74,154.7,9.97]
[1727407066548,3.2313,154.71,154.7,9.97]
[1727407068643,9.97,154.74,154.69,9.97]
[1727407069740,3.2315,154.7,154.69,9.97]
[1727407071340,9.97,154.72,154.64,4.5859]
[1727407071541,9.97,154.72,154.66,9.97]
[1727407072045,3.2321,154.68,154.66,9.97]
[1727407075650,3.2322,154.67,154.66,9.97]
[1727407075852,3.2322,154.67,154.66,17.16988139]
[1727407076651,3.2322,154.67,154.66,9.97]
[1727407076955,3.2322,154.67,154.66,7.19983575]
[1727407077145,3.2324,154.66,154.65,9.97]
[1727407077651,9.97,154.7,154.65,9.97]
[1727407077951,3.2324,154.66,154.65,9.97]
[1727407078153,9.97,154.69,154.63,61.21792303]
[1727407078350,9.97,154.69,154.64,17.17253636]
[1727407078550,9.97,154.69,154.64,9.97]
[1727407078945,3.2328,154.65,154.64,9.97]
[1727407079156,3.2328,154.65,154.64,7.20312729]
[1727407079451,3.2328,154.65,154.64,9.97]
[1727407079655,3.2328,154.64,154.63,61.21792303]
[1727407079951,3.2328,154.64,154.63,8.49225568]
[1727407080453,3.2328,154.64,154.63,1.288]
[1727407080749,3.2328,154.64,154.63,8.49335834]
[1727407080949,3.2328,154.64,154.63,1.288]
[1727407081153,3.2328,154.64,154.63,11.258]
[1727407081352,3.2328,154.64,154.63,8.49391523]
[1727407081549,3.2328,154.64,154.63,1.288]
[1727407081957,3.2328,154.64,154.63,11.258]
[1727407082259,3.2328,154.64,154.63,18.46472107]
[1727407082452,3.2328,154.64,154.63,8.49472107]
[1727407082754,3.2328,154.64,154.63,18.46472107]
[1727407083956,3.2328,154.64,154.63,8.49472107]
[1727407084459,3.2328,154.64,154.63,1.288]
[1727407084662,3.2328,154.64,154.63,8.49634693]
[1727407087656,5.88585977,154.71,154.63,8.49634693]
[1727407087861,9.97,154.68,154.63,1.288]
[1727407088063,3.2328,154.65,154.63,1.288]
[1727407088654,3.2328,154.64,154.63,1.288]
[1727407088859,3.2328,154.64,154.63,8.49894181]
[1727407089858,3.2328,154.64,154.63,1.288]
[1727407090054,3.2328,154.64,154.63,8.49915498]
[1727407093665,3.2328,154.64,154.63,1.288]
[1727407093857,3.2328,154.64,154.63,8.50158733]
[1727407094563,3.2328,154.64,154.63,7.21358733]
[1727407096863,3.2328,154.64,154.62,9.97]
[1727407097060,3.2328,154.64,154.63,7.218941]
[1727407098363,3.2328,154.64,154.63,7.2261658]
[1727407100360,3.2328,154.64,154.62,9.97]
[1727407100564,3.2328,154.64,154.63,7.22661963]
[1727407103669,3.2328,154.64,154.63,18.79696531]
[1727407104281,3.2328,154.64,154.62,9.97]
[1727407104470,3.2328,154.64,154.63,18.80424778]
[1727407109271,3.2328,154.64,154.63,18.80875103]
[1727407110572,3.2328,154.64,154.62,9.97]
[1727407110777,3.2328,154.64,154.63,18.81311185]
[1727407112879,3.2331,154.63,154.61,9.97]
[1727407113080,3.2331,154.63,154.62,33.28652705]
[1727407114086,3.2332,154.62,154.61,9.97]
[1727407114375,9.97,154.63,154.61,18.49526112]
[1727407114591,9.97,154.63,154.59,1.2698]
[1727407114770,9.97,154.62,154.58,9.97]
[1727407114972,9.97,154.61,154.59,7.11689318]
[1727407115171,3.2347,154.55,154.54,1.3865]
[1727407115375,9.97,154.57,154.54,7.12296957]
[1727407115575,9.97,154.57,154.51,9.97]
[1727407115778,3.2348,154.55,154.52,18.51467141]
[1727407115979,3.2348,154.55,154.53,7.12102746]
[1727407116178,3.2348,154.55,154.52,9.97]
[1727407116380,3.2348,154.55,154.53,9.97]
[1727407117373,4.70440663,154.6,154.52,9.97]
[1727407117374,9.97,154.57,154.52,9.97]
[1727407117876,3.2349,154.54,154.52,9.97]
[1727407119474,4.70440663,154.6,154.53,9.97]
[1727407119680,9.97,154.59,154.53,9.97]
[1727407120182,3.2345,154.56,154.53,9.97]
[1727407120883,3.2343,154.57,154.54,9.97]
[1727407121180,13.2231685,154.62,154.56,9.97]
[1727407121883,9.97,154.62,154.56,9.97]
[1727407122283,7.8112,154.69,154.58,9.97]
[1727407122487,9.97,154.63,154.58,9.97]
[1727407123581,9.97,154.63,154.57,9.97]
[1727407123791,3.2338,154.59,154.57,9.97]
[1727407130394,3.234,154.58,154.56,9.97]
[1727407133190,9.97,154.61,154.56,9.97]
[1727407133488,9.97,154.59,154.55,9.97]
[1727407133887,3.2344,154.57,154.55,9.97]
[1727407134089,9.97,154.59,154.55,9.97]
[1727407135417,9.97,154.59,154.52,1.2794]
[1727407135418,9.97,154.61,154.56,9.97]
[1727407135596,3.2342,154.57,154.56,9.97]
[1727407136000,3.2342,154.57,154.55,9.97]
[1727407140398,3.2345,154.56,154.53,3.235]
[1727407140600,9.97,154.59,154.52,11.2494]
[1727407141196,3.235,154.54,154.52,11.2494]
[1727407143995,9.97,154.57,154.51,2.6984]
[1727407144209,9.97,154.57,154.52,9.97]
[1727407144803,3.235,154.54,154.52,9.97]
[1727407145103,3.235,154.54,154.53,9.97]
[1727407145707,3.2347,154.55,154.53,9.97]
[1727407146203,9.97,154.58,154.53,9.97]
[1727407146409,3.2349,154.54,154.53,9.97]
[1727407147810,3.2348,154.55,154.53,9.97]
[1727407150416,3.2348,154.55,154.54,9.97]
[1727407154317,3.2346,154.56,154.54,9.97]
[1727407154516,3.2346,154.56,154.55,9.97]
[1727407156410,1.2917,154.63,154.55,13.2045]
[1727407156614,9.97,154.63,154.58,9.97]
[1727407157016,6.4645,154.67,154.6,9.97]
[1727407157215,9.97,154.65,154.6,9.97]
[1727407157420,6.4645,154.67,154.6,9.97]
[1727407157620,3.2334,154.62,154.61,9.97]
[1727407161421,3.2331,154.63,154.61,9.97]
[1727407161616,3.2331,154.63,154.62,9.97]
[1727407162431,3.2328,154.64,154.62,9.97]
[1727407162724,3.2328,154.64,154.63,9.97]
[1727407166021,3.2331,154.63,154.62,9.97]
[1727407179226,9.97,154.65,154.59,2.7366]
[1727407179431,9.97,154.65,154.59,11.3298]
[1727407179834,3.2336,154.61,154.59,11.3298]
[1727407180532,3.2336,154.6,154.59,11.3298]
[1727407192455,3.2335,154.61,154.59,11.3298]
[1727407192737,3.2335,154.61,154.6,9.97]
[1727407196742,3.2336,154.6,154.59,1.3598]
[1727407196935,3.2336,154.6,154.59,11.3298]
[1727407199838,1.3056,154.68,154.59,14.5635]
[1727407200043,11.2756,154.68,154.64,9.97]
[1727407200743,3.2326,154.65,154.64,9.97]
[1727407205266,3.2319,154.69,154.64,13.2028]
[1727407205546,9.97,154.72,154.67,9.97]
[1727407205746,9.97,154.72,154.68,9.97]
[1727407206649,1.3824,154.76,154.69,9.97]
[1727407206650,9.97,154.75,154.69,9.97]
[1727407207148,3.2315,154.7,154.69,9.97]
[1727407210045,1.3824,154.76,154.69,9.97]
[1727407210246,1.3824,154.76,154.71,9.97]
[1727407210650,3.2311,154.72,154.71,9.97]
[1727407211144,4.6128,154.76,154.72,3.2311]
[1727407211345,1.3824,154.76,154.72,9.97]
[1727407212151,1.2816,154.79,154.72,9.97]
[1727407212359,4.63494051,154.81,154.75,9.97]
[1727407212650,14.60494051,154.81,154.75,9.97]
[1727407213155,9.97,154.8,154.75,9.97]
[1727407214753,3.2303,154.76,154.75,9.97]
[1727407217352,9.97,154.8,154.68,1.3763]
[1727407217551,9.97,154.8,154.74,9.97]
[1727407218654,3.2304,154.76,154.74,9.97]
[1727407219952,3.2305,154.75,154.74,9.97]
[1727407221349,3.2309,154.74,154.68,1.3763]
[1727407221551,9.97,154.76,154.71,9.97]
[1727407223061,9.97,154.79,154.74,9.97]
[1727407223853,3.2305,154.75,154.74,9.97]
[1727407225256,1.3523,154.81,154.74,9.97]
[1727407225456,1.3523,154.81,154.77,9.97]
[1727407227065,3.2299,154.78,154.77,9.97]
[1727407228263,1.3523,154.81,154.76,9.97]
[1727407229163,3.2301,154.77,154.76,9.97]
[1727407230967,13.25548189,154.82,154.76,9.97]
[1727407231167,9.97,154.84,154.78,9.97]
[1727407231468,0.99931973,154.83,154.78,9.97]
[1727407231766,3.2296,154.79,154.78,9.97]
[1727407232568,3.2295,154.8,154.78,9.97]
[1727407232868,3.2295,154.8,154.79,9.97]
[1727407240170,3.2293,154.81,154.79,9.97]
[1727407240371,3.2293,154.81,154.8,9.97]
[1727407241382,2.7019,154.87,154.8,9.97]
[1727407241671,2.7019,154.87,154.84,9.97]
[1727407241973,3.2284,154.85,154.84,9.97]
[1727407242674,3.2286,154.84,154.83,9.97]
[1727407250972,3.2288,154.83,154.82,9.97]
[1727407263278,2.7461,154.89,154.82,9.97]
[1727407263483,2.7461,154.89,154.85,9.97]
[1727407263986,3.2282,154.86,154.85,9.97]
[1727407265683,9.97,154.88,154.83,9.97]
[1727407266690,2.7461,154.89,154.83,9.97]
[1727407266896,3.2286,154.84,154.83,9.97]
[1727407269389,9.97,154.87,154.78,3.2297]
[1727407269588,9.97,154.87,154.83,9.97]
[1727407269987,6.4559,154.88,154.77,1.3652]
[1727407270185,6.4559,154.88,154.79,9.97]
[1727407270186,9.97,154.85,154.79,9.97]
[1727407270789,9.97,154.84,154.79,9.97]
[1727407270987,9.97,154.82,154.77,1.3652]
[1727407271189,9.97,154.82,154.77,9.97]
[1727407271489,3.2294,154.8,154.79,9.97]
[1727407275403,9.97,154.82,154.78,9.97]
[1727407275686,9.97,154.82,154.74,1.2938]
[1727407275888,3.2301,154.77,154.76,9.97]
[1727407281690,3.2304,154.76,154.75,9.97]
[1727407286589,9.97,154.76,154.72,1.388]
[1727407287400,3.2309,154.73,154.72,1.388]
[1727407289003,3.2308,154.74,154.72,11.358]
[1727407289200,3.2308,154.74,154.73,9.97]
[1727407295202,3.2308,154.74,154.72,11.358]
[1727407297399,9.97,154.79,154.73,9.97]
[1727407297701,9.97,154.79,154.75,9.97]
[1727407298406,3.2305,154.76,154.75,9.97]
[1727407298605,9.97,154.79,154.74,9.97]
[1727407299405,9.97,154.78,154.74,9.97]
[1727407300004,3.2305,154.75,154.74,9.97]
[1727407300398,3.2307,154.74,154.72,11.358]
[1727407301907,3.2305,154.75,154.73,9.97]
[1727407302103,6.4581,154.83,154.73,13.2008]
[1727407302305,3.2298,154.79,154.76,9.97]
[1727407303008,3.2298,154.79,154.76,11.3449]
[1727407303403,3.2295,154.8,154.78,9.97]
[1727407307509,3.2293,154.81,154.79,9.97]
[1727407308820,3.2294,154.8,154.79,9.97]
[1727407309512,3.2298,154.79,154.77,9.97]
[1727407310219,3.2299,154.78,154.77,9.97]
[1727407320522,9.97,154.82,154.73,7.77021467]
[1727407320523,9.97,154.79,154.73,7.77021467]
[1727407320729,9.97,154.79,154.74,9.97]
[1727407320929,3.2306,154.75,154.74,9.97]
[1727407322727,3.2304,154.76,154.74,9.97]
[1727407322926,3.2304,154.76,154.75,9.97]
[1727407324637,3.2302,154.77,154.75,9.97]
[1727407325334,3.2302,154.77,154.74,3.2307]
[1727407325737,3.2302,154.77,154.76,9.97]
[1727407327141,2.5393,154.81,154.76,9.97]
[1727407327142,3.2299,154.78,154.76,9.97]
[1727407327340,3.2299,154.78,154.77,9.97]
[1727407327935,2.5393,154.81,154.77,9.97]
[1727407329832,3.2299,154.78,154.77,9.97]
[1727407330456,3.2297,154.79,154.77,9.97]
[1727407336742,9.97,154.82,154.77,9.97]
[1727407336743,3.2299,154.78,154.77,9.97]
[1727407341447,3.2297,154.79,154.77,9.97]
[1727407342742,3.2299,154.78,154.77,9.97]
[1727407343939,3.2299,154.78,154.75,6.45870724]
[1727407344137,3.2299,154.78,154.76,9.97]
[1727407344344,3.2299,154.78,154.76,13.2002]
[1727407347450,3.2299,154.78,154.76,9.97]
[1727407347944,3.2301,154.77,154.76,9.97]
[1727407349145,3.23,154.78,154.76,13.2003]
[1727407351553,9.97,154.8,154.74,10.32668561]
[1727407351745,9.97,154.79,154.73,11.2582]
[1727407352047,9.97,154.77,154.73,9.97]
[1727407352646,9.97,154.75,154.69,1.2817]
[1727407352841,9.97,154.75,154.7,16.42475325]
[1727407353043,9.97,154.75,154.7,9.97]
[1727407353553,3.231,154.73,154.7,13.2014]
[1727407353849,5.89584606,154.8,154.72,9.97]
[1727407354051,9.97,154.77,154.72,9.97]
[1727407354247,9.97,154.77,154.69,11.60930521]
[1727407354248,9.97,154.76,154.71,9.97]
[1727407355753,3.231,154.73,154.71,9.97]
[1727407357249,3.231,154.73,154.71,13.2013]
[1727407367963,3.2306,154.75,154.72,9.97]
[1727407368260,3.2306,154.75,154.73,9.97]
[1727407368664,5.89584606,154.8,154.74,9.97]
[1727407368665,3.2304,154.76,154.74,9.97]
[1727407368859,9.97,154.82,154.75,9.97]
[1727407369063,9.97,154.82,154.77,9.97]
[1727407369861,3.2299,154.78,154.77,9.97]
[1727407370466,3.2299,154.78,154.76,9.97]
[1727407372159,9.97,154.81,154.75,3.2304]
[1727407372365,9.97,154.81,154.76,9.97]
[1727407373870,3.23,154.78,154.76,9.97]
[1727407385971,1.2772,154.83,154.77,9.97]
[1727407386167,1.2772,154.83,154.79,9.97]
[1727407386574,3.2296,154.8,154.79,9.97]
[1727407394882,1.2877,154.88,154.79,9.97]
[1727407395078,9.97,154.84,154.79,9.97]
[1727407395880,3.2294,154.8,154.79,9.97]
[1727407396583,3.2294,154.8,154.78,9.97]
[1727407397180,3.2294,154.81,154.79,9.97]
[1727407397385,9.97,154.86,154.8,9.97]
[1727407397780,3.2289,154.83,154.8,13.1994]
[1727407398085,1.2877,154.88,154.82,9.97]
[1727407398281,9.6768,154.99,154.84,9.97]
[1727407398486,9.6768,154.99,154.86,9.97]
[1727407398487,1.3373,154.93,154.86,9.97]
[1727407398690,9.97,154.92,154.86,9.97]
[1727407399187,3.2277,154.89,154.87,9.97]
[1727407404696,3.2274,154.9,154.88,9.97]
[1727407405096,11.3073,154.93,154.88,9.97]
[1727407405288,11.3073,154.93,154.81,9.04244988]
[1727407405289,1.3373,154.93,154.87,9.97]
[1727407405493,3.2275,154.9,154.87,9.97]
[1727407405797,1.3373,154.93,154.87,9.97]
[1727407405997,3.2275,154.9,154.89,9.97]
[1727407406394,3.2276,154.89,154.88,9.97]
[1727407406793,11.3073,154.93,154.86,9.97]
[1727407406794,9.97,154.92,154.86,9.97]
[1727407407291,9.97,154.92,154.81,2.6219]
[1727407407292,9.97,154.9,154.85,9.97]
[1727407407797,3.2281,154.87,154.85,9.97]
[1727407408392,3.2283,154.86,154.82,3.2289]
[1727407408588,9.97,154.89,154.85,9.97]
[1727407409296,9.97,154.88,154.84,9.97]
[1727407409595,3.2975769,154.9,154.81,1.2932]
[1727407409596,9.97,154.86,154.81,1.2932]
[1727407409796,9.97,154.85,154.81,1.2932]
[1727407409998,3.229,154.82,154.81,1.2932]
[1727407410995,3.2293,154.81,154.76,59.879041]
[1727407411197,3.2293,154.81,154.79,9.97]
[1727407412500,3.2295,154.8,154.77,4.5711]
[1727407412699,3.2295,154.8,154.79,9.97]
[1727407413096,3.2292,154.81,154.79,9.97]
[1727407414400,3.2292,154.81,154.8,9.97]
[1727407416600,3.2296,154.8,154.77,1.3411]
[1727407416800,3.2296,154.8,154.79,9.97]
[1727407417197,4.55294371,154.89,154.79,9.97]
[1727407417398,9.97,154.87,154.82,9.97]
[1727407418901,3.229,154.83,154.82,9.97]
[1727407420105,3.2287,154.84,154.82,9.97]
[1727407420792,3.2288,154.83,154.82,9.97]
[1727407424400,3.2291,154.82,154.79,3.2296]
[1727407424705,3.2291,154.82,154.81,9.97]
[1727407424900,9.97,154.84,154.79,9.97]
[1727407425107,3.2294,154.8,154.79,9.97]
[1727407425304,9.97,154.83,154.78,9.97]
[1727407426408,1.2952,154.85,154.79,9.97]
[1727407426700,9.97,154.84,154.79,9.97]
[1727407426905,1.2952,154.85,154.79,9.97]
[1727407426906,11.2652,154.85,154.79,9.97]
[1727407427105,11.2652,154.85,154.81,9.97]
[1727407427905,9.97,154.86,154.81,9.97]
[1727407428297,9.97,154.86,154.81,1.32914119]
[1727407428602,2.6413,154.89,154.84,9.97]
[1727407428908,9.97,154.88,154.84,9.97]
[1727407429207,3.2284,154.85,154.84,9.97]
[1727407433606,3.2287,154.84,154.82,9.97]
[1727407437708,3.2287,154.84,154.81,3.2292]
[1727407437906,3.2287,154.84,154.82,9.97]
[1727407440208,3.2287,154.84,154.83,9.97]
[1727407440402,2.6413,154.89,154.83,9.97]
[1727407440606,6.4531,154.95,154.85,9.97]
[1727407440804,9.97,154.91,154.85,9.97]
[1727407441010,3.2281,154.87,154.85,9.97]
[1727407441413,2.7102,154.94,154.86,9.97]
[1727407441615,9.97,154.91,154.86,9.97]
[1727407441911,3.2279,154.88,154.83,1.3686]
[1727407442110,2.7102,154.94,154.87,9.97]
[1727407442409,3.2276,154.89,154.88,9.97]
[1727407443518,3.2276,154.89,154.87,9.97]
[1727407444509,3.2278,154.88,154.87,9.97]
[1727407444924,3.2278,154.88,154.85,3.2283]
[1727407444925,9.97,154.91,154.83,1.3686]
[1727407445108,3.2281,154.87,154.83,1.3686]
[1727407445511,3.2281,154.87,154.86,9.97]
[1727407446312,2.7102,154.94,154.85,9.97]
[1727407446516,9.97,154.91,154.85,9.97]
[1727407447016,3.2281,154.87,154.85,9.97]
[1727407448518,3.2281,154.87,154.86,9.97]
[1727407455123,2.7102,154.94,154.86,9.97]
[1727407455318,2.7102,154.94,154.88,9.97]
[1727407455319,9.97,154.93,154.88,9.97]
[1727407455725,2.7102,154.94,154.88,9.97]
[1727407455918,2.7102,154.94,154.91,9.97]
[1727407456127,9.97,154.97,154.92,9.97]
[1727407456425,3.2267,154.93,154.92,9.97]
[1727407459835,3.2273,154.91,154.87,6.73940317]
[1727407460137,9.97,154.94,154.88,9.97]
[1727407460633,3.2275,154.9,154.88,9.97]
[1727407461333,3.2276,154.89,154.88,9.97]
[1727407461834,9.97,154.93,154.88,9.97]
[1727407462228,3.2274,154.9,154.88,9.97]
[1727407463931,3.2276,154.89,154.88,9.97]
[1727407466533,11.2578,154.94,154.88,13.1978]
[1727407466534,1.2878,154.94,154.88,13.1978]
[1727407466833,1.2878,154.94,154.9,9.97]
[1727407467929,3.2274,154.91,154.9,9.97]
[1727407471438,1.2878,154.94,154.86,5.9207]
[1727407471439,3.2277,154.89,154.86,5.9207]
[1727407471641,1.2878,154.94,154.88,9.97]
[1727407472338,3.2275,154.9,154.88,9.97]
[1727407475733,3.2276,154.89,154.88,9.97]
[1727407476139,3.2276,154.89,154.86,5.9207]
[1727407476140,9.97,154.92,154.87,9.97]
[1727407476838,3.2279,154.88,154.87,9.97]
[1727407480130,3.2277,154.89,154.87,9.97]
[1727407480335,3.2277,154.89,154.88,9.97]
[1727407483639,3.2278,154.88,154.86,2.6926]
[1727407483840,3.2278,154.88,154.87,9.97]
[1727407484137,3.2277,154.89,154.87,9.97]
[1727407484939,1.2878,154.94,154.87,9.97]
[1727407485141,1.2878,154.94,154.89,9.97]
[1727407486939,9.97,154.93,154.88,9.97]
[1727407487746,3.2277,154.89,154.88,9.97]
[1727407488045,9.97,154.93,154.88,9.97]
[1727407488247,11.2578,154.94,154.88,9.97]
[1727407488939,3.2273,154.91,154.88,9.97]
[1727407490244,3.2274,154.9,154.88,9.97]
[1727407492044,3.2274,154.9,154.86,3.2281]
[1727407492240,3.2274,154.9,154.88,9.97]
[1727407499039,9.97,154.91,154.86,9.97]
[1727407499242,9.97,154.91,154.87,6.76352712]
[1727407499440,9.97,154.91,154.86,9.97]
[1727407499741,9.97,154.92,154.87,9.97]
[1727407500851,3.2277,154.89,154.87,9.97]
[1727407502652,9.97,154.9,154.85,9.97]
[1727407503047,9.97,154.9,154.83,1.3686]
[1727407503246,1.2878,154.94,154.84,27.56967012]
[1727407503247,9.97,154.89,154.84,27.56967012]
[1727407503452,9.97,154.87,154.85,6.76910389]
[1727407503654,1.2878,154.94,154.8,15.861]
[1727407503655,3.2288,154.83,154.8,15.861]
[1727407503857,3.2288,154.83,154.81,17.61048515]
[1727407504051,3.2288,154.83,154.82,6.77326352]
[1727407504247,3.2288,154.83,154.82,17.6111484]
[1727407504449,13.1988,154.83,154.82,6.77326352]
[1727407505455,9.97,154.83,154.8,10.84046932]
[1727407505656,9.97,154.82,154.78,1.3753]
[1727407505954,9.97,154.82,154.79,17.62004229]
[1727407506156,3.2292,154.81,154.8,6.77693934]
[1727407506347,9.97,154.82,154.78,1.3753]
[1727407506549,3.2292,154.81,154.8,6.77555533]
[1727407506755,9.97,154.82,154.78,1.3753]
[1727407507359,3.2295,154.8,154.78,1.3753]
[1727407508555,3.2296,154.79,154.78,1.3753]